fUSD/lending_fUSD_20240213
["ID","MTS","AMOUNT","RATE_DAILY","PERIOD"]
[313906822,1707809432029,-725.34,0.0002501,2]
[313906823,1707809432040,-721.05,0.00025012,2]
[313906824,1707809432048,-718.17,0.00025012,2]
[313906825,1707809432057,-732.87,0.00025012,2]
[313906826,1707809432066,-731.96,0.00025014,2]
[313906827,1707809432076,-737.88,0.00025014,2]
[313906828,1707809432085,-714.69,0.00025014,2]
[313906829,1707809432094,-731.14,0.00025016,2]
[313906830,1707809432103,-713.19,0.00025016,2]
[313906831,1707809432113,-710.2,0.00025016,2]
[313906832,1707809432122,-728.17,0.00025016,2]
[313906833,1707809432131,-12958.0,0.000251,2]
[313906834,1707809432140,-217.34883226,0.00025214,2]
[313906835,1707809432149,-166.85859751,0.00025215,2]
[313906836,1707809432159,-200.0,0.00025464,2]
[313906837,1707809432168,-23900.0,0.00025479,2]
[313906838,1707809432177,-2819.08,0.00025493,2]
[313906839,1707809432187,-2386.43,0.00025493,2]
[313906840,1707809432203,-717.45,0.00025508,2]
[313906841,1707809432215,-721.29,0.00025525,2]
[313906842,1707809432224,-249.97,0.00025529,2]
[313906843,1707809432233,-250.0,0.00025533,2]
[313906844,1707809432242,-3449.42,0.00025551,2]
[313906845,1707809432251,-2660.06,0.00025551,2]
[313906846,1707809432261,-1852.42,0.00025574,2]
[313906847,1707809432270,-2000.0,0.00025574,2]
[313906848,1707809432280,-2321.15,0.00025576,2]
[313906849,1707809432290,-3149.04,0.00025576,2]
[313906850,1707809432299,-14565.61,0.00025576,2]
[313906851,1707809432308,-250.0,0.00025596,2]
[313906852,1707809432317,-691.12,0.00025599,2]
[313906853,1707809432327,-500.95,0.00025599,2]
[313906854,1707809432336,-500.0,0.00025611,2]
[313906855,1707809432345,-3297.04,0.00025611,2]
[313906857,1707809432354,-154.13,0.00025626,2]
[313906859,1707809432363,-2532.82,0.00025627,2]
[313906860,1707809432373,-500.0,0.00025632,2]
[313906862,1707809432382,-458.07,0.00025635,2]
[313906864,1707809432392,-2705.0,0.00025657,2]
[313906866,1707809432401,-1466.51,0.0002566,2]
[313906868,1707809432410,-750.0,0.00025705,2]
[313906871,1707809432420,-150.9,0.0002575,2]
[313906873,1707809432429,-570.31596037,0.00025835,2]
[313906875,1707809432438,-182.34,0.00025882,2]
[313906877,1707809432448,-2978.46,0.00025906,2]
[313906878,1707809432457,-2735.48,0.00025908,2]
[313906879,1707809432466,-150.9,0.00025917,2]
[313906880,1707809432475,-1950.77,0.0002593,2]
[313906881,1707809432485,-647.88,0.00025946,2]
[313906882,1707809432494,-150.99,0.00026014,2]
[313906883,1707809432503,-150.9,0.00026085,2]
[313906884,1707809432513,-4123.23,0.00026126,2]
[313906885,1707809432522,-348.76,0.0002615,2]
[313906886,1707809432531,-166.85859751,0.00026169,2]
[313906887,1707809432540,-541.93,0.00026204,2]
[313906888,1707809432549,-166.03,0.0002621,2]
[313906889,1707809432558,-180.64,0.00026218,2]
[313906890,1707809432568,-1389.63,0.00026239,2]
[313906891,1707809432577,-150.9,0.00026253,2]
[313906892,1707809432586,-250.0,0.00026281,2]
[313906893,1707809432595,-1915.74,0.00026297,2]
[313906894,1707809432605,-164.87,0.00026341,2]
[313906895,1707809432614,-1003.51,0.00026355,2]
[313906896,1707809432624,-729.02,0.00026373,2]
[313906897,1707809432633,-150.9,0.00026421,2]
[313906898,1707809432642,-150.9,0.00026588,2]
[313906899,1707809432652,-500.0,0.00026589,2]
[313906900,1707809432661,-150.9,0.00026756,2]
[313906901,1707809432671,-154.13,0.00026907,2]
[313906902,1707809432680,-150.9,0.00026924,2]
[313906903,1707809432689,-400.0,0.00027,3]
[313906904,1707809432698,-150.9,0.00027092,2]
[313906905,1707809432708,-166.85859751,0.00027122,2]
[313906906,1707809432717,-2660.06,0.00027195,2]
[313906907,1707809432727,-3143.38051339,0.00027271,2]
[313906908,1707809432736,-533.58951722,0.00027295,3]
[313906909,1707809432745,-504.54571686,0.00027295,3]
[313906910,1707809432755,-1686.79130852,0.00027295,3]
[313906911,1707809432764,-625.28144977,0.00027556,2]
[313906912,1707809432773,-422.19790322,0.00027556,2]
[313906913,1707809432782,-180.64,0.00027966,2]
[313906914,1707809432791,-166.85859751,0.00028076,2]
[313906915,1707809432800,-177.27,0.000281,2]
[313906916,1707809432809,-150.0,0.000281,2]
[313906917,1707809432818,-154.13,0.00028189,2]
[313906918,1707809432827,-647.88,0.00028209,2]
[313906919,1707809432837,-200.0,0.000284,10]
[313906920,1707809432846,-500.0,0.000285,10]
[313906921,1707809432855,-387.27115452,0.00028548,2]
[313906922,1707809432865,-800.0,0.000286,10]
[313906923,1707809432874,-156.79080948,0.00028609,2]
[313906924,1707809432883,-2500.0,0.00028639,2]
[313906925,1707809432893,-1000.0,0.00028639,2]
[313906926,1707809432902,-36420.7138,0.00028639,2]
[313906927,1707809432914,-177.27,0.00028648,2]
[313906928,1707809432952,-1000.0,0.000287,10]
[313906929,1707809432961,-795.64431204,0.00028705,2]
[313906930,1707809432970,-4264.44760234,0.00028706,2]
[313906931,1707809432980,-2025.51049649,0.00028707,2]
[313906932,1707809432989,-519.107339,0.00028707,2]
[313906933,1707809432998,-302.1607977,0.00028707,2]
[313906934,1707809433007,-46623.2095,0.00028708,2]
[313906935,1707809433017,-2083.5792,0.00028709,2]
[313906936,1707809433026,-4547.2655,0.00028709,2]
[313906937,1707809433035,-497.9261,0.00028709,2]
[313906938,1707809433044,-500.0,0.00028767,2]
[313906939,1707809433052,-500.0,0.00028767,2]
[313906940,1707809433062,-628.64,0.00028767,2]
[313906941,1707809433071,-782.99,0.00028767,2]
[313906942,1707809433079,-500.0,0.00028767,2]
[313906943,1707809433089,-500.0,0.00028767,2]
[313906944,1707809433098,-500.0,0.00028767,2]
[313906945,1707809433108,-500.0,0.00028767,2]
[313906946,1707809433118,-500.0,0.00028767,2]
[313906947,1707809433128,-500.0,0.00028767,2]
[313906948,1707809433137,-500.0,0.00028767,2]
[313906949,1707809433146,-500.0,0.00028767,2]
[313906950,1707809433155,-500.0,0.00028767,2]
[313906951,1707809433164,-793.99,0.00028767,2]
[313906952,1707809433173,-500.0,0.00028767,2]
[313906953,1707809433181,-2063.95,0.00028767,2]
[313906954,1707809433192,-500.0,0.00028767,2]
[313906955,1707809433203,-500.0,0.00028767,2]
[313906956,1707809433212,-500.0,0.00028767,2]
[313906957,1707809433222,-500.0,0.00028767,2]
[313906958,1707809433232,-500.0,0.00028767,2]
[313906959,1707809433242,-593.28063216,0.00028767,2]
[313906960,1707809433251,-500.0,0.00028767,2]
[313906961,1707809433260,-703.49,0.00028767,2]
[313906962,1707809433269,-500.0,0.00028767,2]
[313906963,1707809433280,-500.0,0.00028767,2]
[313906964,1707809433290,-500.0,0.00028767,2]
[313906965,1707809433299,-500.0,0.00028767,2]
[313906966,1707809433308,-500.0,0.00028767,2]
[313906967,1707809433317,-500.0,0.00028767,2]
[313906968,1707809433326,-500.0,0.00028767,2]
[313906969,1707809433335,-551.75985144,0.00028767,2]
[313906970,1707809433345,-500.0,0.00028767,2]
[313906971,1707809433355,-1099.77,0.00028767,2]
[313906972,1707809433366,-500.0,0.00028767,2]
[313906973,1707809433375,-500.0,0.00028767,2]
[313906974,1707809433384,-2132.25,0.00028767,2]
[313906975,1707809433393,-500.0,0.00028767,2]
[313906976,1707809433402,-704.18,0.00028767,2]
[313906977,1707809433412,-500.0,0.00028767,2]
[313906978,1707809433421,-500.0,0.00028767,2]
[313906979,1707809433430,-1382.88,0.00028767,2]
[313906980,1707809433439,-500.0,0.00028767,2]
[313906981,1707809433449,-500.0,0.00028767,2]
[313906982,1707809433457,-500.0,0.00028767,2]
[313906983,1707809433467,-500.0,0.00028767,2]
[313906984,1707809433476,-1456.58,0.00028767,2]
[313906985,1707809433485,-1771.5,0.00028767,2]
[313906986,1707809433495,-2280.86,0.00028767,2]
[313906987,1707809433504,-500.0,0.00028767,2]
[313906988,1707809433513,-500.0,0.00028767,2]
[313906989,1707809433522,-500.0,0.00028767,2]
[313906990,1707809433532,-500.0,0.00028767,2]
[313906991,1707809433541,-523.25,0.00028767,2]
[313906992,1707809433550,-500.0,0.00028767,2]
[313906993,1707809433559,-1858.83,0.00028767,2]
[313906994,1707809433568,-500.0,0.00028767,2]
[313906995,1707809433577,-500.0,0.00028767,2]
[313906996,1707809433586,-500.0,0.00028767,2]
[313906997,1707809433595,-500.0,0.00028767,2]
[313906998,1707809433604,-892.45,0.00028767,2]
[313906999,1707809433613,-500.0,0.00028767,2]
[313907000,1707809433622,-512.18648289,0.00028767,2]
[313907001,1707809433631,-500.0,0.00028767,2]
[313907002,1707809433641,-519.12519815,0.00028767,2]
[313907003,1707809433650,-475.47816333,0.00028767,2]
[313907004,1707809433659,-1260.84,0.00028767,2]
[313907005,1707809433668,-500.0,0.00028767,2]
[313907006,1707809433677,-500.0,0.00028767,2]
[313907007,1707809433686,-507.31269202,0.00028767,2]
[313907008,1707809433695,-500.0,0.00028767,2]
[313907009,1707809433705,-537.50685523,0.00028767,2]
[313907010,1707809433714,-514.70398204,0.00028767,2]
[313907011,1707809433724,-500.0,0.00028767,2]
[313907012,1707809433733,-506.14414843,0.00028767,2]
[313907013,1707809433742,-1084.71,0.00028767,2]
[313907014,1707809433751,-500.0,0.00028767,2]
[313907015,1707809433760,-516.26041285,0.00028767,2]
[313907016,1707809433769,-500.0,0.00028767,2]
[313907017,1707809433779,-500.0,0.00028767,2]
[313907018,1707809433790,-617.56054918,0.00028767,2]
[313907019,1707809433799,-500.0,0.00028767,2]
[313907020,1707809433810,-514.14440873,0.00028767,2]
[313907021,1707809433820,-1000.0,0.000288,2]
[313907022,1707809433830,-1300.0,0.000288,10]
[313907023,1707809433840,-156.34453584,0.00028806,2]
[313907024,1707809433850,-2150.13332931,0.00028807,2]
[313907025,1707809433859,-2647.35205851,0.00028807,2]
[313907026,1707809433868,-1378.6670059,0.00028807,2]
[313907027,1707809433878,-2318.65841291,0.00028807,2]
[313907028,1707809433889,-628.58420417,0.00028807,2]
[313907029,1707809433900,-1408.28428995,0.00028807,2]
[313907030,1707809433911,-545.75241723,0.00028807,2]
[313907031,1707809433922,-526.54171103,0.00028807,2]
[313907032,1707809434132,-500.0,0.00028808,2]
[313907033,1707809434142,-520.92221174,0.00028808,2]
[313907034,1707809434151,-500.0,0.00028808,2]
[313907035,1707809434160,-417.17582646,0.00028808,2]
[313907036,1707809434169,-500.0,0.00028808,2]
[313907037,1707809434178,-255.25572185,0.00028808,2]
[313907038,1707809434187,-500.0,0.00028808,2]
[313907039,1707809434199,-500.0,0.00028808,2]
[313907040,1707809434208,-500.0,0.00028808,2]
[313907041,1707809434216,-500.0,0.00028808,2]
[313907042,1707809434225,-500.0,0.00028808,2]
[313907043,1707809434235,-500.0,0.00028808,2]
[313907044,1707809434244,-500.0,0.00028808,2]
[313907045,1707809434253,-500.0,0.00028808,2]
[313907046,1707809434262,-500.0,0.00028808,2]
[313907047,1707809434273,-500.0,0.00028808,2]
[313907048,1707809434283,-500.0,0.00028808,2]
[313907049,1707809434291,-365.49263762,0.00028808,2]
[313907050,1707809434301,-500.0,0.00028808,2]
[313907051,1707809434310,-500.0,0.00028808,2]
[313907052,1707809434321,-500.0,0.00028808,2]
[313907053,1707809434331,-500.0,0.00028808,2]
[313907054,1707809434340,-500.0,0.00028808,2]
[313907055,1707809434351,-500.0,0.00028808,2]
[313907056,1707809434362,-500.0,0.00028808,2]
[313907057,1707809434372,-429.53858101,0.00028808,2]
[313907058,1707809434380,-500.0,0.00028808,2]
[313907059,1707809434389,-500.0,0.00028808,7]
[313907060,1707809434398,-500.0,0.00028808,2]
[313907061,1707809434408,-500.0,0.00028808,2]
[313907062,1707809434417,-500.0,0.00028808,2]
[313907063,1707809434425,-500.0,0.00028808,2]
[313907064,1707809434435,-500.0,0.00028808,2]
[313907065,1707809434444,-500.0,0.00028808,2]
[313907066,1707809434453,-500.0,0.00028808,2]
[313907067,1707809434462,-500.0,0.00028808,2]
[313907068,1707809434471,-500.0,0.00028808,2]
[313907069,1707809434481,-500.0,0.00028808,2]
[313907070,1707809434490,-500.0,0.00028808,2]
[313907071,1707809434499,-500.0,0.00028808,2]
[313907072,1707809434509,-500.0,0.00028808,2]
[313907073,1707809434518,-500.0,0.00028808,2]
[313907074,1707809434527,-500.0,0.00028808,2]
[313907075,1707809434536,-500.0,0.00028808,2]
[313907076,1707809434545,-500.0,0.00028808,2]
[313907077,1707809434554,-500.0,0.00028808,2]
[313907078,1707809434564,-500.0,0.00028808,2]
[313907079,1707809434573,-542.22300019,0.00028808,2]
[313907080,1707809434582,-500.0,0.00028808,2]
[313907081,1707809434592,-500.0,0.00028808,2]
[313907082,1707809434601,-500.0,0.00028808,2]
[313907083,1707809434610,-500.0,0.00028808,2]
[313907084,1707809434620,-500.0,0.00028808,2]
[313907085,1707809434630,-500.0,0.00028808,2]
[313907086,1707809434639,-500.0,0.00028808,2]
[313907087,1707809434649,-500.0,0.00028808,2]
[313907088,1707809434659,-500.0,0.00028808,2]
[313907089,1707809434669,-500.0,0.00028808,2]
[313907090,1707809434679,-500.0,0.00028808,2]
[313907091,1707809434689,-500.0,0.00028808,2]
[313907092,1707809434698,-150.0,0.00028808,2]
[313907093,1707809434707,-500.0,0.00028808,2]
[313907094,1707809434716,-500.0,0.00028808,2]
[313907095,1707809434725,-542.17568011,0.00028808,2]
[313907096,1707809434735,-500.0,0.00028808,2]
[313907097,1707809434745,-500.0,0.00028808,2]
[313907098,1707809434754,-382.673222,0.00028808,2]
[313907099,1707809434764,-500.0,0.00028808,2]
[313907100,1707809434773,-500.0,0.00028808,2]
[313907101,1707809434783,-500.0,0.00028808,2]
[313907102,1707809434792,-500.0,0.00028808,2]
[313907103,1707809434801,-500.0,0.00028808,2]
[313907104,1707809434811,-540.93589984,0.00028808,2]
[313907105,1707809434820,-500.0,0.00028808,2]
[313907106,1707809434829,-524.56549794,0.00028808,2]
[313907107,1707809434838,-638.98140088,0.00028808,2]
[313907108,1707809434847,-500.0,0.00028808,2]
[313907109,1707809434856,-537.50208942,0.00028808,2]
[313907110,1707809434866,-500.0,0.00028808,2]
[313907111,1707809434875,-526.76572511,0.00028808,2]
[313907112,1707809434884,-500.0,0.00028808,2]
[313907113,1707809434894,-500.0,0.00028808,2]
[313907114,1707809434903,-512.21698579,0.00028808,2]
[313907115,1707809434912,-533.71109585,0.00028808,2]
[313907116,1707809434921,-500.0,0.00028808,2]
[313907117,1707809434930,-500.0,0.00028808,2]
[313907118,1707809434940,-500.0,0.00028808,2]
[313907119,1707809434949,-500.0,0.00028808,2]
[313907120,1707809434958,-500.0,0.00028808,2]
[313907121,1707809434966,-500.0,0.00028808,2]
[313907122,1707809434976,-500.0,0.00028808,2]
[313907123,1707809434985,-500.0,0.00028808,2]
[313907124,1707809434994,-500.0,0.00028808,2]
[313907125,1707809435003,-500.0,0.00028808,2]
[313907126,1707809435013,-500.0,0.00028808,2]
[313907127,1707809435022,-500.0,0.00028808,2]
[313907128,1707809435032,-500.0,0.00028808,2]
[313907129,1707809435041,-500.0,0.00028808,2]
[313907130,1707809435050,-500.0,0.00028808,2]
[313907131,1707809435059,-500.0,0.00028808,2]
[313907132,1707809435068,-556.52604702,0.00028808,2]
[313907133,1707809435078,-500.0,0.00028808,2]
[313907134,1707809435086,-500.0,0.00028808,2]
[313907135,1707809435095,-500.0,0.00028808,2]
[313907136,1707809435104,-500.0,0.00028808,2]
[313907137,1707809435114,-500.0,0.00028808,2]
[313907138,1707809435123,-500.0,0.00028808,2]
[313907139,1707809435132,-500.0,0.00028808,2]
[313907140,1707809435142,-500.0,0.00028808,2]
[313907141,1707809435151,-500.0,0.00028808,2]
[313907142,1707809435161,-500.0,0.00028808,2]
[313907143,1707809435170,-500.0,0.00028808,2]
[313907144,1707809435179,-500.0,0.00028808,2]
[313907145,1707809435188,-500.0,0.00028808,2]
[313907146,1707809435202,-500.0,0.00028808,2]
[313907147,1707809435211,-500.0,0.00028808,2]
[313907148,1707809435221,-500.0,0.00028808,2]
[313907149,1707809435230,-488.57624882,0.00028808,2]
[313907150,1707809435240,-500.0,0.00028808,2]
[313907151,1707809435249,-500.0,0.00028808,2]
[313907152,1707809435258,-500.0,0.00028808,2]
[313907153,1707809435268,-500.0,0.00028808,2]
[313907154,1707809435280,-500.0,0.00028808,2]
[313907155,1707809435290,-500.0,0.00028808,2]
[313907156,1707809435300,-500.0,0.00028808,2]
[313907157,1707809435309,-500.0,0.00028808,2]
[313907158,1707809435318,-500.0,0.00028808,2]
[313907159,1707809435327,-500.0,0.00028808,2]
[313907160,1707809435337,-500.0,0.00028808,2]
[313907161,1707809435346,-500.0,0.00028808,2]
[313907162,1707809435357,-500.0,0.00028808,2]
[313907163,1707809435366,-500.0,0.00028808,2]
[313907164,1707809435375,-749.03,0.00028808,2]
[313907165,1707809435385,-500.0,0.00028808,2]
[313907166,1707809435394,-500.0,0.00028808,2]
[313907167,1707809435403,-540.61131199,0.00028808,2]
[313907168,1707809435412,-500.0,0.00028808,2]
[313907169,1707809435421,-500.0,0.00028808,2]
[313907170,1707809435430,-500.0,0.00028808,2]
[313907171,1707809435439,-500.0,0.00028808,2]
[313907172,1707809435449,-599.58,0.00028808,2]
[313907173,1707809435458,-205.28474714,0.00028808,2]
[313907174,1707809435468,-500.0,0.00028808,2]
[313907175,1707809435477,-500.0,0.00028808,2]
[313907176,1707809435486,-500.0,0.00028808,2]
[313907177,1707809435496,-500.0,0.00028808,2]
[313907178,1707809435505,-500.0,0.00028808,2]
[313907179,1707809435514,-500.0,0.00028808,2]
[313907180,1707809435524,-500.0,0.00028808,2]
[313907181,1707809435533,-500.0,0.00028808,2]
[313907182,1707809435542,-500.0,0.00028808,2]
[313907183,1707809435551,-232.74652948,0.00028808,2]
[313907184,1707809435575,-267.25347052,0.00028808,2]
[313907185,1707809435585,-500.0,0.00028808,2]
[313907186,1707809435594,-500.0,0.00028808,2]
[313907187,1707809435604,-500.0,0.00028808,2]
[313907188,1707809435613,-500.0,0.00028808,2]
[313907189,1707809435623,-500.0,0.00028808,2]
[313907190,1707809435632,-500.0,0.00028808,2]
[313907191,1707809435642,-520.78081685,0.00028808,2]
[313907192,1707809435652,-520.93176075,0.00028808,2]
[313907193,1707809435661,-500.0,0.00028808,2]
[313907194,1707809435671,-500.0,0.00028808,2]
[313907195,1707809435680,-581.36259092,0.00028808,2]
[313907196,1707809435690,-500.0,0.00028808,2]
[313907197,1707809435700,-500.0,0.00028808,2]
[313907198,1707809435709,-500.0,0.00028808,2]
[313907199,1707809435718,-500.0,0.00028808,2]
[313907200,1707809435728,-500.0,0.00028808,2]
[313907201,1707809435737,-500.0,0.00028808,2]
[313907202,1707809435748,-500.0,0.00028808,2]
[313907203,1707809435757,-500.0,0.00028808,2]
[313907204,1707809435767,-500.0,0.00028808,2]
[313907205,1707809435776,-500.0,0.00028808,2]
[313907206,1707809435785,-500.0,0.00028808,2]
[313907207,1707809435795,-500.0,0.00028808,2]
[313907208,1707809435804,-500.0,0.00028808,2]
[313907209,1707809435814,-500.0,0.00028808,2]
[313907210,1707809435823,-500.0,0.00028808,2]
[313907211,1707809435832,-500.0,0.00028808,2]
[313907212,1707809435841,-500.0,0.00028808,2]
[313907213,1707809435851,-500.0,0.00028808,2]
[313907214,1707809435860,-195.59547948,0.00028808,2]
[313907215,1707809435870,-500.0,0.00028808,2]
[313907216,1707809435881,-500.0,0.00028808,2]
[313907217,1707809435889,-535.1297038,0.00028808,2]
[313907218,1707809435898,-500.0,0.00028808,2]
[313907219,1707809435907,-500.0,0.00028808,2]
[313907220,1707809435917,-500.0,0.00028808,2]
[313907221,1707809435926,-557.49,0.00028808,2]
[313907222,1707809435935,-500.0,0.00028808,2]
[313907223,1707809435944,-500.0,0.00028808,2]
[313907224,1707809435953,-500.0,0.00028808,2]
[313907225,1707809435962,-1908.66,0.00028808,2]
[313907226,1707809435971,-586.97858099,0.00028808,2]
[313907227,1707809435980,-500.0,0.00028808,2]
[313907228,1707809435989,-545.85,0.00028808,2]
[313907229,1707809435998,-500.0,0.00028808,2]
[313907230,1707809436013,-500.0,0.00028808,2]
[313907231,1707809436027,-500.0,0.00028808,2]
[313907232,1707809436041,-500.0,0.00028808,2]
[313907233,1707809436054,-500.0,0.00028808,2]
[313907234,1707809436065,-500.0,0.00028808,2]
[313907235,1707809436075,-500.0,0.00028808,2]
[313907236,1707809436088,-508.10057906,0.00028808,2]
[313907237,1707809436099,-510.55,0.00028808,2]
[313907238,1707809436111,-480.27729508,0.00028808,2]
[313907239,1707809436126,-500.0,0.00028808,2]
[313907240,1707809436138,-546.22304021,0.00028808,2]
[313907241,1707809436151,-504.97278886,0.00028808,2]
[313907242,1707809436163,-553.85,0.00028808,2]
[313907243,1707809436177,-500.0,0.00028808,2]
[313907244,1707809436187,-500.0,0.00028808,2]
[313907245,1707809436202,-500.0,0.00028808,2]
[313907246,1707809436215,-500.0,0.00028808,2]
[313907247,1707809436226,-500.0,0.00028808,2]
[313907248,1707809436238,-460.54108955,0.00028808,2]
[313907249,1707809436250,-740.16486404,0.00028808,7]
[313907250,1707809436261,-500.0,0.00028808,2]
[313907251,1707809436276,-500.0,0.00028808,2]
[313907252,1707809436289,-500.0,0.00028808,2]
[313907253,1707809436299,-500.0,0.00028808,2]
[313907254,1707809436309,-500.0,0.00028808,2]
[313907255,1707809436322,-500.0,0.00028808,2]
[313907256,1707809436335,-500.0,0.00028808,2]
[313907257,1707809436347,-500.0,0.00028808,2]
[313907258,1707809436360,-500.0,0.00028808,2]
[313907259,1707809436372,-500.0,0.00028808,2]
[313907260,1707809436383,-500.0,0.00028808,2]
[313907261,1707809436393,-500.0,0.00028808,2]
[313907262,1707809436405,-500.0,0.00028808,2]
[313907263,1707809436418,-500.0,0.00028808,2]
[313907264,1707809436430,-643.69,0.00028808,2]
[313907265,1707809436441,-500.0,0.00028808,2]
[313907266,1707809436454,-500.0,0.00028808,2]
[313907267,1707809436468,-500.0,0.00028808,2]
[313907268,1707809436481,-500.0,0.00028808,2]
[313907269,1707809436493,-500.0,0.00028808,2]
[313907270,1707809436505,-500.0,0.00028808,2]
[313907271,1707809436516,-916.0,0.00028808,2]
[313907272,1707809436526,-500.0,0.00028808,2]
[313907273,1707809436537,-500.0,0.00028808,2]
[313907274,1707809436548,-500.0,0.00028808,2]
[313907275,1707809436559,-500.0,0.00028808,2]
[313907276,1707809436572,-479.08677923,0.00028808,2]
[313907277,1707809436584,-500.0,0.00028808,2]
[313907278,1707809436595,-500.0,0.00028808,2]
[313907279,1707809436609,-500.0,0.00028808,2]
[313907280,1707809436620,-157.67095713,0.00028837,2]
[313907281,1707809436631,-295.68851017,0.00028837,2]
[313907282,1707809436642,-2660.06,0.00028838,2]
[313907283,1707809436652,-458.07,0.00028839,2]
[313907284,1707809436664,-200.0,0.000289,10]
[313907285,1707809436675,-283.6246,0.0002893,2]
[313907286,1707809436686,-157.02761407,0.00028953,2]
[313907287,1707809436697,-20397.58667235,0.00028986,2]
[313907288,1707809436711,-714.69,0.00028987,2]
[313907289,1707809436722,-4205.41396462,0.00028998,2]
[313907290,1707809436733,-363.90530588,0.00028998,2]
[313907291,1707809436744,-435.246611,0.00028999,2]
[313907292,1707809436755,-504.46167824,0.00028999,2]
[313907293,1707809436766,-316.63474198,0.00028999,2]
[313907294,1707809436777,-500.0,0.00028999,2]
[313907295,1707809436787,-504.22142179,0.00028999,2]
[313907296,1707809436799,-500.0,0.00028999,2]
[313907297,1707809436809,-503.99380946,0.00028999,2]
[313907298,1707809436820,-500.0,0.00028999,2]
[313907299,1707809436830,-635.44,0.00028999,2]
[313907300,1707809436841,-500.0,0.00028999,2]
[313907301,1707809436852,-500.0,0.00028999,2]
[313907302,1707809436862,-500.0,0.00028999,2]
[313907303,1707809436874,-470.64054874,0.00028999,2]
[313907304,1707809436892,-29.35945126,0.00028999,2]
[313907305,1707809436903,-500.0,0.00028999,2]
[313907306,1707809436914,-14.76806174,0.00028999,2]
[313907307,1707809436963,-485.23193826,0.00028999,2]
[313907308,1707809436973,-260.12632423,0.00028999,2]
[313907309,1707809437016,-499.69477585,0.00028767,2]
[313907310,1707809437026,-1092.59931866,0.00028999,2]
[313907311,1707809437041,-418.528043,0.00028999,2]
[313907312,1707809437056,-132.11631411,0.00028999,2]
[313907313,1707809437067,-389.8603912,0.00028999,2]
[313907327,1707809438637,-1195.5996088,0.00028999,2]
[313907328,1707809438646,-525.98,0.00028999,2]
[313907329,1707809438655,-500.0,0.00028999,2]
[313907330,1707809438664,-1323.45,0.00028999,2]
[313907331,1707809438673,-867.29,0.00028999,2]
[313907332,1707809438682,-131.14536626,0.00028999,2]
[313907333,1707809438873,-0.00141375,0.00028999,2]
[313907334,1707809438885,-393.29321999,0.00028999,2]
[313907335,1707809438894,-500.0,0.00028999,2]
[313907336,1707809438903,-500.0,0.00028999,2]
[313907337,1707809438913,-500.0,0.00028999,2]
[313907338,1707809438924,-2418.82,0.00028999,2]
[313907339,1707809438934,-921.78,0.00028999,2]
[313907340,1707809438945,-542.05,0.00028999,2]
[313907341,1707809438956,-500.0,0.00028999,2]
[313907342,1707809438965,-320.53724894,0.00028999,2]
[313907343,1707809438974,-500.0,0.00028999,2]
[313907344,1707809438983,-500.0,0.00028999,2]
[313907345,1707809438992,-519.56027056,0.00028999,2]